[Event "Titled Tuesday Blitz July 13 2021"]
[White "Goltsev, Dmitry"]
[Black "Trent, Lawrence"]
[WhiteFideId "24176710"]
[BlackFideId "408638"]
[WhiteElo "2366"]
[BlackElo "2474"]
[Result "1-0"]
[Round "03"]
[TimeControl "180+1"]
[Date "2021.07.13"]
[WhiteClock "0:01:42"]
[BlackClock "0:01:27"]

1. e4 {[%clk 0:03:00]}  e6 {[%clk 0:02:58]} 2. d4 {[%clk 0:02:58]}  d5 {[%clk 0:02:58]} 3. exd5 {[%clk 0:02:59]}  exd5 {[%clk 0:02:58]} 4. Nf3 {[%clk 0:03:00]}  Bd6 {[%clk 0:02:56]} 5. c4 {[%clk 0:02:59]}  dxc4 {[%clk 0:02:51]} 6. Bxc4 {[%clk 0:03:00]}  Nf6 {[%clk 0:02:52]} 7. O-O {[%clk 0:03:00]}  O-O {[%clk 0:02:52]} 8. Nc3 {[%clk 0:02:59]}  a6 {[%clk 0:02:50]} 9. Bg5 {[%clk 0:02:59]}  Nbd7 {[%clk 0:02:48]} 10. Re1 {[%clk 0:02:57]}  b5 {[%clk 0:02:48]} 11. Bd5 {[%clk 0:02:54]}  Rb8 {[%clk 0:02:44]} 12. Ne5 {[%clk 0:02:55]}  Bb7 {[%clk 0:02:30]} 13. Qb3 {[%clk 0:02:44]}  Bxd5 {[%clk 0:02:18]} 14. Nxd5 {[%clk 0:02:45]}  Bxe5 {[%clk 0:02:12]} 15. dxe5 {[%clk 0:02:43]}  Nc5 {[%clk 0:02:13]} 16. Qg3 {[%clk 0:01:55]}  Qxd5 {[%clk 0:01:55]} 17. Bxf6 {[%clk 0:01:52]}  g6 {[%clk 0:01:55]} 18. Rad1 {[%clk 0:01:49]}  Qc6 {[%clk 0:01:32]} 19. Qh4 {[%clk 0:01:47]}  Ne6 {[%clk 0:01:30]} 20. Re3 {[%clk 0:01:45]}  Qc2 {[%clk 0:01:27]} 21. Qxh7+ {[%clk 0:01:42]} 1-0


[Site "https://www.chess.com"]

[Event "Titled Tuesday Blitz July 13 2021"]
[White "Golubev, Mikhail"]
[Black "Bersamina, Paulo"]
[WhiteFideId "14100983"]
[BlackFideId "5206995"]
[WhiteElo "2374"]
[BlackElo "2349"]
[Result "1-0"]
[Round "03"]
[TimeControl "180+1"]
[Date "2021.07.13"]
[WhiteClock "0:00:51"]
[BlackClock "0:00:42"]

1. e4 {[%clk 0:03:00]}  c5 {[%clk 0:03:00]} 2. Nf3 {[%clk 0:03:01]}  e6 {[%clk 0:03:00]} 3. d4 {[%clk 0:03:00]}  cxd4 {[%clk 0:03:01]} 4. Nxd4 {[%clk 0:03:01]}  Bc5 {[%clk 0:03:02]} 5. Nb5 {[%clk 0:02:26]}  Qb6 {[%clk 0:03:00]} 6. Be3 {[%clk 0:02:18]}  Bxe3 {[%clk 0:02:56]} 7. fxe3 {[%clk 0:02:18]}  d5 {[%clk 0:02:56]} 8. exd5 {[%clk 0:02:08]}  Nf6 {[%clk 0:02:53]} 9. Qd4 {[%clk 0:02:00]}  Qxd4 {[%clk 0:02:46]} 10. exd4 {[%clk 0:01:57]}  Nxd5 {[%clk 0:02:44]} 11. c4 {[%clk 0:01:56]}  Nb4 {[%clk 0:02:39]} 12. Nc7+ {[%clk 0:01:54]}  Kd8 {[%clk 0:02:36]} 13. Nxa8 {[%clk 0:01:55]}  Nc2+ {[%clk 0:02:37]} 14. Kd2 {[%clk 0:01:49]}  Nxa1 {[%clk 0:02:38]} 15. Nc3 {[%clk 0:01:45]}  b6 {[%clk 0:02:33]} 16. Be2 {[%clk 0:01:39]}  Bb7 {[%clk 0:02:31]} 17. Bf3 {[%clk 0:01:37]}  Nc6 {[%clk 0:02:31]} 18. Nxb6 {[%clk 0:01:28]}  Nb3+ {[%clk 0:02:24]} 19. axb3 {[%clk 0:01:26]}  axb6 {[%clk 0:02:24]} 20. Ra1 {[%clk 0:01:24]}  Kc8 {[%clk 0:02:12]} 21. Nb5 {[%clk 0:01:18]}  Rd8 {[%clk 0:02:03]} 22. Kc3 {[%clk 0:01:18]}  Kb8 {[%clk 0:01:59]} 23. c5 {[%clk 0:01:14]}  bxc5 {[%clk 0:01:53]} 24. dxc5 {[%clk 0:01:15]}  Ne5 {[%clk 0:01:35]} 25. Bxb7 {[%clk 0:01:13]}  Kxb7 {[%clk 0:01:36]} 26. Nd6+ {[%clk 0:01:13]}  Kc6 {[%clk 0:01:36]} 27. b4 {[%clk 0:01:12]}  f6 {[%clk 0:01:26]} 28. Kd4 {[%clk 0:01:09]}  Rxd6+ {[%clk 0:00:49]} 29. cxd6 {[%clk 0:01:08]}  Nd7 {[%clk 0:00:50]} 30. Ra6+ {[%clk 0:01:01]}  Kb5 {[%clk 0:00:50]} 31. Ra7 {[%clk 0:00:56]}  Kc6 {[%clk 0:00:48]} 32. Rxd7 {[%clk 0:00:53]}  Kxd7 {[%clk 0:00:47]} 33. Kc5 {[%clk 0:00:53]}  e5 {[%clk 0:00:46]} 34. b5 {[%clk 0:00:51]}  e4 {[%clk 0:00:42]} 35. b6 {[%clk 0:00:51]} 1-0


[Site "https://www.chess.com"]

[Event "Titled Tuesday Blitz July 13 2021"]
[White "Grigoriants, Sergey"]
[Black "Toniutti, Ezio"]
[WhiteFideId "4130804"]
[BlackFideId "113034"]
[WhiteElo "2502"]
[BlackElo "2215"]
[Result "1/2-1/2"]
[Round "03"]
[TimeControl "180+1"]
[Date "2021.07.13"]
[WhiteClock "0:00:14"]
[BlackClock "0:00:05"]

1. e4 {[%clk 0:03:00]}  e5 {[%clk 0:02:58]} 2. Nf3 {[%clk 0:03:00]}  Nc6 {[%clk 0:02:58]} 3. Bb5 {[%clk 0:02:59]}  a6 {[%clk 0:02:58]} 4. Ba4 {[%clk 0:03:00]}  d6 {[%clk 0:02:58]} 5. c3 {[%clk 0:02:53]}  f5 {[%clk 0:02:57]} 6. exf5 {[%clk 0:02:41]}  Bxf5 {[%clk 0:02:58]} 7. d4 {[%clk 0:02:41]}  e4 {[%clk 0:02:45]} 8. Ng5 {[%clk 0:02:25]}  d5 {[%clk 0:02:40]} 9. f3 {[%clk 0:02:19]}  h6 {[%clk 0:02:38]} 10. fxe4 {[%clk 0:02:17]}  hxg5 {[%clk 0:02:34]} 11. exf5 {[%clk 0:02:15]}  Bd6 {[%clk 0:02:32]} 12. Qe2+ {[%clk 0:02:07]}  Kf8 {[%clk 0:02:29]} 13. Be3 {[%clk 0:02:05]}  Qf6 {[%clk 0:02:23]} 14. Nd2 {[%clk 0:01:45]}  Re8 {[%clk 0:02:22]} 15. O-O-O {[%clk 0:01:44]}  Nh6 {[%clk 0:02:13]} 16. Qd3 {[%clk 0:01:19]}  Ng4 {[%clk 0:02:08]} 17. Bg1 {[%clk 0:01:19]}  Bf4 {[%clk 0:01:47]} 18. Kb1 {[%clk 0:01:18]}  Ne3 {[%clk 0:01:34]} 19. Re1 {[%clk 0:01:18]}  Nxf5 {[%clk 0:01:27]} 20. Rxe8+ {[%clk 0:01:17]}  Kxe8 {[%clk 0:01:26]} 21. Bf2 {[%clk 0:01:14]}  Rxh2 {[%clk 0:01:06]} 22. Rxh2 {[%clk 0:00:48]}  Bxh2 {[%clk 0:01:05]} 23. Bxc6+ {[%clk 0:00:38]}  bxc6 {[%clk 0:01:04]} 24. Qxa6 {[%clk 0:00:37]}  Kd7 {[%clk 0:00:54]} 25. Nb3 {[%clk 0:00:32]}  Bd6 {[%clk 0:00:49]} 26. a4 {[%clk 0:00:31]}  Nh4 {[%clk 0:00:45]} 27. Qe2 {[%clk 0:00:31]}  Qf5+ {[%clk 0:00:33]} 28. Ka2 {[%clk 0:00:31]}  Nxg2 {[%clk 0:00:28]} 29. a5 {[%clk 0:00:30]}  Nf4 {[%clk 0:00:23]} 30. Qf3 {[%clk 0:00:28]}  g4 {[%clk 0:00:20]} 31. Qh1 {[%clk 0:00:27]}  Nd3 {[%clk 0:00:18]} 32. Be3 {[%clk 0:00:26]}  Qf3 {[%clk 0:00:14]} 33. Qg1 {[%clk 0:00:20]}  Qe2 {[%clk 0:00:14]} 34. Nd2 {[%clk 0:00:19]}  g3 {[%clk 0:00:10]} 35. a6 {[%clk 0:00:18]}  Nf4 {[%clk 0:00:06]} 36. a7 {[%clk 0:00:13]}  Qa6+ {[%clk 0:00:06]} 37. Kb1 {[%clk 0:00:14]}  Qd3+ {[%clk 0:00:06]} 38. Ka2 {[%clk 0:00:13]}  Qa6+ {[%clk 0:00:06]} 39. Kb1 {[%clk 0:00:14]}  Qd3+ {[%clk 0:00:05]} 40. Ka2 {[%clk 0:00:14]}  Qa6+ {[%clk 0:00:05]} 1/2-1/2


[Site "https://www.chess.com"]

[Event "Titled Tuesday Blitz July 13 2021"]
[White "Horton, Andrew P"]
[Black "Har-Zvi, Ronen"]
[WhiteFideId "424269"]
[BlackFideId "2801485"]
[WhiteElo "2401"]
[BlackElo "2523"]
[Result "0-1"]
[Round "03"]
[TimeControl "180+1"]
[Date "2021.07.13"]
[WhiteClock "0:00:23"]
[BlackClock "0:00:53"]

1. e4 {[%clk 0:03:00]}  c6 {[%clk 0:02:59]} 2. d4 {[%clk 0:02:55]}  d5 {[%clk 0:02:59]} 3. Nc3 {[%clk 0:02:55]}  dxe4 {[%clk 0:02:59]} 4. Nxe4 {[%clk 0:02:56]}  Bf5 {[%clk 0:02:59]} 5. Ng3 {[%clk 0:02:56]}  Bg6 {[%clk 0:02:59]} 6. Nh3 {[%clk 0:02:40]}  e6 {[%clk 0:02:59]} 7. Nf4 {[%clk 0:02:37]}  Bd6 {[%clk 0:02:59]} 8. h4 {[%clk 0:02:34]}  Qc7 {[%clk 0:02:58]} 9. Qf3 {[%clk 0:02:24]}  Bxc2 {[%clk 0:02:52]} 10. Ngh5 {[%clk 0:02:24]}  Bb4+ {[%clk 0:02:27]} 11. Bd2 {[%clk 0:02:21]}  Qa5 {[%clk 0:02:27]} 12. Bc3 {[%clk 0:01:48]}  Nf6 {[%clk 0:02:05]} 13. Nxg7+ {[%clk 0:01:41]}  Ke7 {[%clk 0:02:05]} 14. Bc4 {[%clk 0:01:31]}  Be4 {[%clk 0:01:52]} 15. Qe3 {[%clk 0:01:21]}  Rg8 {[%clk 0:01:50]} 16. f3 {[%clk 0:01:10]}  Rxg7 {[%clk 0:01:00]} 17. fxe4 {[%clk 0:01:10]}  Ng4 {[%clk 0:00:56]} 18. Qf3 {[%clk 0:01:03]}  Nd7 {[%clk 0:00:57]} 19. Nh5 {[%clk 0:00:56]}  Bxc3+ {[%clk 0:00:55]} 20. bxc3 {[%clk 0:00:53]}  Qxh5 {[%clk 0:00:56]} 21. O-O-O {[%clk 0:00:44]}  Qh6+ {[%clk 0:00:56]} 22. Kb2 {[%clk 0:00:33]}  Qe3 {[%clk 0:00:57]} 23. Rhg1 {[%clk 0:00:30]}  Rag8 {[%clk 0:00:53]} 24. Qf1 {[%clk 0:00:23]}  Qf2+ {[%clk 0:00:53]} 0-1


[Site "https://www.chess.com"]

[Event "Titled Tuesday Blitz July 13 2021"]
[White "Howell, David W L"]
[Black "Solon, Nathan"]
[WhiteFideId "410608"]
[BlackFideId "2017229"]
[WhiteElo "2643"]
[BlackElo "2646"]
[Result "1-0"]
[Round "03"]
[TimeControl "180+1"]
[Date "2021.07.13"]
[WhiteClock "0:00:07"]
[BlackClock "0:00:05"]

1. d4 {[%clk 0:03:00]}  Nf6 {[%clk 0:03:00]} 2. c4 {[%clk 0:03:00]}  e6 {[%clk 0:03:00]} 3. Nf3 {[%clk 0:03:00]}  d5 {[%clk 0:03:00]} 4. Nc3 {[%clk 0:02:57]}  dxc4 {[%clk 0:03:00]} 5. e3 {[%clk 0:02:53]}  a6 {[%clk 0:03:00]} 6. Bxc4 {[%clk 0:02:53]}  b5 {[%clk 0:03:00]} 7. Be2 {[%clk 0:02:52]}  Bb7 {[%clk 0:03:00]} 8. O-O {[%clk 0:02:52]}  Nbd7 {[%clk 0:03:00]} 9. b3 {[%clk 0:02:29]}  Bd6 {[%clk 0:02:54]} 10. Bb2 {[%clk 0:02:29]}  O-O {[%clk 0:02:50]} 11. Rc1 {[%clk 0:02:30]}  c5 {[%clk 0:02:41]} 12. a4 {[%clk 0:02:30]}  b4 {[%clk 0:02:38]} 13. Nb1 {[%clk 0:02:29]}  Qb8 {[%clk 0:02:33]} 14. Nbd2 {[%clk 0:02:13]}  Rd8 {[%clk 0:02:28]} 15. Nc4 {[%clk 0:02:10]}  Bf8 {[%clk 0:02:28]} 16. Bd3 {[%clk 0:01:55]}  h6 {[%clk 0:02:17]} 17. Qe2 {[%clk 0:01:53]}  Ng4 {[%clk 0:02:11]} 18. Nfe5 {[%clk 0:01:41]}  Ngxe5 {[%clk 0:02:08]} 19. dxe5 {[%clk 0:01:41]}  Bd5 {[%clk 0:02:02]} 20. f4 {[%clk 0:01:40]}  Nb6 {[%clk 0:01:56]} 21. Na5 {[%clk 0:01:26]}  Ra7 {[%clk 0:01:46]} 22. Rfd1 {[%clk 0:01:25]}  Rad7 {[%clk 0:01:26]} 23. Bxa6 {[%clk 0:01:22]}  Qa8 {[%clk 0:01:26]} 24. e4 {[%clk 0:00:31]}  Bxe4 {[%clk 0:01:22]} 25. Rxd7 {[%clk 0:00:31]}  Rxd7 {[%clk 0:01:23]} 26. Bb5 {[%clk 0:00:27]}  Rd8 {[%clk 0:01:15]} 27. Nc4 {[%clk 0:00:25]}  Nxc4 {[%clk 0:01:12]} 28. Bxc4 {[%clk 0:00:26]}  Bxg2 {[%clk 0:01:01]} 29. Qxg2 {[%clk 0:00:22]}  Qxg2+ {[%clk 0:01:02]} 30. Kxg2 {[%clk 0:00:23]}  Rd2+ {[%clk 0:01:02]} 31. Kf3 {[%clk 0:00:22]}  Rxb2 {[%clk 0:01:03]} 32. Ra1 {[%clk 0:00:22]}  Rd2 {[%clk 0:00:55]} 33. a5 {[%clk 0:00:22]}  Rd7 {[%clk 0:00:56]} 34. a6 {[%clk 0:00:21]}  Ra7 {[%clk 0:00:56]} 35. Ra5 {[%clk 0:00:19]}  g5 {[%clk 0:00:54]} 36. fxg5 {[%clk 0:00:16]}  hxg5 {[%clk 0:00:55]} 37. Kg4 {[%clk 0:00:17]}  Bg7 {[%clk 0:00:54]} 38. Rxc5 {[%clk 0:00:16]}  Bf8 {[%clk 0:00:40]} 39. Rc8 {[%clk 0:00:14]}  Kg7 {[%clk 0:00:40]} 40. Kxg5 {[%clk 0:00:14]}  Be7+ {[%clk 0:00:36]} 41. Kg4 {[%clk 0:00:14]}  f6 {[%clk 0:00:24]} 42. exf6+ {[%clk 0:00:13]}  Kxf6 {[%clk 0:00:25]} 43. Rc6 {[%clk 0:00:13]}  Kg7 {[%clk 0:00:19]} 44. Rxe6 {[%clk 0:00:12]}  Bf6 {[%clk 0:00:19]} 45. h4 {[%clk 0:00:12]}  Rd7 {[%clk 0:00:16]} 46. h5 {[%clk 0:00:11]}  Bc3 {[%clk 0:00:10]} 47. Kf5 {[%clk 0:00:09]}  Rd2 {[%clk 0:00:08]} 48. a7 {[%clk 0:00:07]}  Rf2+ {[%clk 0:00:07]} 49. Kg4 {[%clk 0:00:07]}  Ra2 {[%clk 0:00:08]} 50. Rg6+ {[%clk 0:00:06]}  Kf8 {[%clk 0:00:07]} 51. Ra6 {[%clk 0:00:07]}  Rg2+ {[%clk 0:00:05]} 52. Kh3 {[%clk 0:00:07]} 1-0


[Site "https://www.chess.com"]

[Event "Titled Tuesday Blitz July 13 2021"]
[White "Jarovinsky, Alexey"]
[Black "Najdin, Danil"]
[WhiteFideId "14115131"]
[BlackFideId "4172426"]
[WhiteElo "2446"]
[BlackElo "2193"]
[Result "1-0"]
[Round "03"]
[TimeControl "180+1"]
[Date "2021.07.13"]
[WhiteClock "0:00:24"]
[BlackClock "0:00:17"]

1. Nc3 {[%clk 0:03:00]}  Nf6 {[%clk 0:02:55]} 2. e4 {[%clk 0:03:00]}  e5 {[%clk 0:02:55]} 3. f4 {[%clk 0:02:59]}  d5 {[%clk 0:02:54]} 4. fxe5 {[%clk 0:02:59]}  Nxe4 {[%clk 0:02:54]} 5. Qf3 {[%clk 0:02:59]}  Nxc3 {[%clk 0:02:53]} 6. dxc3 {[%clk 0:03:00]}  Be6 {[%clk 0:02:49]} 7. Qg3 {[%clk 0:02:58]}  c5 {[%clk 0:02:48]} 8. Nf3 {[%clk 0:02:56]}  Nc6 {[%clk 0:02:47]} 9. Ng5 {[%clk 0:02:45]}  Bf5 {[%clk 0:02:39]} 10. Bd3 {[%clk 0:02:43]}  Bxd3 {[%clk 0:02:25]} 11. cxd3 {[%clk 0:02:44]}  Be7 {[%clk 0:02:25]} 12. Nf3 {[%clk 0:02:28]}  Qc7 {[%clk 0:02:12]} 13. Qxg7 {[%clk 0:02:22]}  O-O-O {[%clk 0:02:11]} 14. O-O {[%clk 0:02:15]}  Rhg8 {[%clk 0:02:05]} 15. Qxf7 {[%clk 0:02:11]}  Nxe5 {[%clk 0:02:04]} 16. Qe6+ {[%clk 0:02:00]}  Qd7 {[%clk 0:01:52]} 17. Qxe5 {[%clk 0:01:57]}  Bd6 {[%clk 0:01:53]} 18. Qh5 {[%clk 0:01:51]}  Rde8 {[%clk 0:01:47]} 19. Bg5 {[%clk 0:01:45]}  Qf5 {[%clk 0:01:42]} 20. Rae1 {[%clk 0:01:39]}  Ref8 {[%clk 0:01:22]} 21. Qh4 {[%clk 0:00:59]}  Qxd3 {[%clk 0:01:11]} 22. Be7 {[%clk 0:00:37]}  Rxf3 {[%clk 0:00:31]} 23. Bxd6 {[%clk 0:00:30]}  Qd2 {[%clk 0:00:31]} 24. Bg3 {[%clk 0:00:27]}  Rxf1+ {[%clk 0:00:26]} 25. Rxf1 {[%clk 0:00:28]}  Qxb2 {[%clk 0:00:23]} 26. Qxh7 {[%clk 0:00:26]}  Re8 {[%clk 0:00:18]} 27. Qf5+ {[%clk 0:00:25]}  Kd8 {[%clk 0:00:17]} 28. Qxd5+ {[%clk 0:00:24]} 1-0


[Site "https://www.chess.com"]

[Event "Titled Tuesday Blitz July 13 2021"]
[White "Khanin, Semen"]
[Black "Martinez Reyes, Pedro Ramon"]
[WhiteFideId "4111990"]
[BlackFideId "3901807"]
[WhiteElo "2521"]
[BlackElo "2398"]
[Result "1-0"]
[Round "03"]
[TimeControl "180+1"]
[Date "2021.07.13"]
[WhiteClock "0:00:46"]
[BlackClock "0:00:38"]

1. e4 {[%clk 0:02:58]}  e6 {[%clk 0:02:59]} 2. d4 {[%clk 0:02:57]}  d5 {[%clk 0:03:00]} 3. e5 {[%clk 0:02:58]}  c5 {[%clk 0:03:00]} 4. c3 {[%clk 0:02:59]}  Qb6 {[%clk 0:02:59]} 5. Nf3 {[%clk 0:02:59]}  Bd7 {[%clk 0:03:00]} 6. Bd3 {[%clk 0:03:00]}  Bb5 {[%clk 0:02:59]} 7. dxc5 {[%clk 0:03:00]}  Bxc5 {[%clk 0:02:58]} 8. Bxb5+ {[%clk 0:03:00]}  Qxb5 {[%clk 0:02:58]} 9. b4 {[%clk 0:03:01]}  Bf8 {[%clk 0:02:58]} 10. Na3 {[%clk 0:02:56]}  Qc6 {[%clk 0:02:56]} 11. Qd3 {[%clk 0:02:51]}  Nd7 {[%clk 0:02:54]} 12. Nb5 {[%clk 0:02:49]}  a6 {[%clk 0:02:48]} 13. Nbd4 {[%clk 0:02:45]}  Qc7 {[%clk 0:02:47]} 14. O-O {[%clk 0:02:43]}  Ne7 {[%clk 0:02:46]} 15. Bf4 {[%clk 0:02:39]}  Nc6 {[%clk 0:02:41]} 16. Rfe1 {[%clk 0:02:37]}  Be7 {[%clk 0:02:40]} 17. h4 {[%clk 0:02:26]}  h6 {[%clk 0:02:39]} 18. h5 {[%clk 0:02:25]}  Rc8 {[%clk 0:02:39]} 19. Rac1 {[%clk 0:02:20]}  Nb6 {[%clk 0:02:38]} 20. Nd2 {[%clk 0:02:11]}  Qd7 {[%clk 0:02:34]} 21. Qg3 {[%clk 0:02:09]}  Bf8 {[%clk 0:02:23]} 22. N2b3 {[%clk 0:02:09]}  Nxd4 {[%clk 0:02:22]} 23. cxd4 {[%clk 0:02:08]}  Nc4 {[%clk 0:02:22]} 24. Nc5 {[%clk 0:02:07]}  Qe7 {[%clk 0:02:11]} 25. Rxc4 {[%clk 0:01:57]}  dxc4 {[%clk 0:02:11]} 26. d5 {[%clk 0:01:55]}  Rxc5 {[%clk 0:01:50]} 27. bxc5 {[%clk 0:01:45]}  Qxc5 {[%clk 0:01:39]} 28. dxe6 {[%clk 0:01:45]}  fxe6 {[%clk 0:01:36]} 29. Qg6+ {[%clk 0:01:44]}  Ke7 {[%clk 0:01:36]} 30. Rd1 {[%clk 0:01:38]}  c3 {[%clk 0:01:35]} 31. Be3 {[%clk 0:00:55]}  Qc4 {[%clk 0:00:54]} 32. Bb6 {[%clk 0:00:54]}  Qc8 {[%clk 0:00:48]} 33. Rd6 {[%clk 0:00:47]}  c2 {[%clk 0:00:40]} 34. Bd8+ {[%clk 0:00:46]}  Qxd8 {[%clk 0:00:38]} 35. Qxe6# {[%clk 0:00:46]} 1-0


[Site "https://www.chess.com"]

[Event "Titled Tuesday Blitz July 13 2021"]
[White "Krivonosov, Oleg"]
[Black "FGHSMN"]
[WhiteFideId "11600349"]
[WhiteElo "2469"]
[BlackElo "2494"]
[Result "0-1"]
[Round "03"]
[TimeControl "180+1"]
[Date "2021.07.13"]
[WhiteClock "0:00:26"]
[BlackClock "0:00:10"]

1. Nf3 {[%clk 0:03:00]}  Nf6 {[%clk 0:02:59]} 2. c4 {[%clk 0:02:59]}  c5 {[%clk 0:02:59]} 3. Nc3 {[%clk 0:02:59]}  e6 {[%clk 0:02:58]} 4. g3 {[%clk 0:02:58]}  b6 {[%clk 0:02:59]} 5. Bg2 {[%clk 0:02:57]}  Bb7 {[%clk 0:02:59]} 6. O-O {[%clk 0:02:57]}  a6 {[%clk 0:02:59]} 7. d4 {[%clk 0:02:57]}  cxd4 {[%clk 0:02:59]} 8. Qxd4 {[%clk 0:02:57]}  d6 {[%clk 0:02:59]} 9. Bg5 {[%clk 0:02:56]}  Nbd7 {[%clk 0:02:58]} 10. Rfd1 {[%clk 0:02:53]}  Be7 {[%clk 0:02:57]} 11. Nd2 {[%clk 0:02:53]}  Bxg2 {[%clk 0:02:56]} 12. Kxg2 {[%clk 0:02:53]}  O-O {[%clk 0:02:53]} 13. Nde4 {[%clk 0:02:53]}  h6 {[%clk 0:02:53]} 14. Nxf6+ {[%clk 0:02:51]}  Nxf6 {[%clk 0:02:54]} 15. Bxf6 {[%clk 0:02:49]}  gxf6 {[%clk 0:02:47]} 16. Ne4 {[%clk 0:02:45]}  Rc8 {[%clk 0:02:24]} 17. Nxd6 {[%clk 0:02:36]}  Bxd6 {[%clk 0:02:02]} 18. Qxd6 {[%clk 0:02:35]}  Qxd6 {[%clk 0:02:01]} 19. Rxd6 {[%clk 0:02:35]}  Rxc4 {[%clk 0:02:02]} 20. Rxb6 {[%clk 0:02:35]}  Rc2 {[%clk 0:02:02]} 21. e3 {[%clk 0:02:25]}  Rd8 {[%clk 0:02:01]} 22. Rxa6 {[%clk 0:02:20]}  Rdd2 {[%clk 0:01:54]} 23. Rf1 {[%clk 0:02:20]}  Rxb2 {[%clk 0:01:54]} 24. a4 {[%clk 0:02:19]}  Ra2 {[%clk 0:01:53]} 25. g4 {[%clk 0:02:14]}  Kg7 {[%clk 0:01:53]} 26. Kg3 {[%clk 0:02:14]}  Rdc2 {[%clk 0:01:48]} 27. h3 {[%clk 0:02:13]}  Rc4 {[%clk 0:01:47]} 28. a5 {[%clk 0:02:08]}  Rc5 {[%clk 0:01:45]} 29. Rd1 {[%clk 0:02:07]}  Rcxa5 {[%clk 0:01:43]} 30. Rxa5 {[%clk 0:02:06]}  Rxa5 {[%clk 0:01:44]} 31. Rd4 {[%clk 0:02:05]}  f5 {[%clk 0:01:41]} 32. Rf4 {[%clk 0:02:01]}  Kg6 {[%clk 0:01:36]} 33. gxf5+ {[%clk 0:01:58]}  Rxf5 {[%clk 0:01:37]} 34. Rg4+ {[%clk 0:01:57]}  Rg5 {[%clk 0:01:33]} 35. h4 {[%clk 0:01:54]}  Rxg4+ {[%clk 0:01:32]} 36. Kxg4 {[%clk 0:01:55]}  f5+ {[%clk 0:01:24]} 37. Kf4 {[%clk 0:01:49]}  Kh5 {[%clk 0:01:04]} 38. Kg3 {[%clk 0:01:48]}  e5 {[%clk 0:01:03]} 39. f3 {[%clk 0:01:45]}  Kg6 {[%clk 0:00:52]} 40. Kh3 {[%clk 0:01:39]}  Kf6 {[%clk 0:00:51]} 41. Kg3 {[%clk 0:01:38]}  Ke6 {[%clk 0:00:29]} 42. Kf2 {[%clk 0:01:29]}  Kd5 {[%clk 0:00:28]} 43. Ke2 {[%clk 0:01:29]}  Kc4 {[%clk 0:00:24]} 44. Kd2 {[%clk 0:01:28]}  e4 {[%clk 0:00:21]} 45. Kc2 {[%clk 0:00:38]}  exf3 {[%clk 0:00:15]} 46. Kd2 {[%clk 0:00:36]}  Kd5 {[%clk 0:00:16]} 47. Kd3 {[%clk 0:00:33]}  Ke5 {[%clk 0:00:15]} 48. h5 {[%clk 0:00:31]}  f4 {[%clk 0:00:14]} 49. Kd2 {[%clk 0:00:27]}  Ke4 {[%clk 0:00:09]} 50. exf4 {[%clk 0:00:26]}  Kxf4 {[%clk 0:00:10]} 51. Ke1 {[%clk 0:00:26]}  Ke3 {[%clk 0:00:10]} 0-1


[Site "https://www.chess.com"]

[Event "Titled Tuesday Blitz July 13 2021"]
[White "Madaminov, Mukhiddin"]
[Black "Samsonkin, Artiom"]
[WhiteFideId "14210703"]
[BlackFideId "13503111"]
[WhiteElo "1747"]
[BlackElo "2513"]
[Result "1-0"]
[Round "03"]
[TimeControl "180+1"]
[Date "2021.07.13"]
[WhiteClock "0:01:29"]
[BlackClock "0:00:02"]

1. e4 {[%clk 0:03:00]}  c5 {[%clk 0:02:58]} 2. Nf3 {[%clk 0:02:59]}  d6 {[%clk 0:02:58]} 3. Bb5+ {[%clk 0:02:59]}  Nd7 {[%clk 0:02:57]} 4. O-O {[%clk 0:02:59]}  a6 {[%clk 0:02:57]} 5. Bd3 {[%clk 0:02:59]}  Ngf6 {[%clk 0:02:56]} 6. Re1 {[%clk 0:02:59]}  g6 {[%clk 0:02:57]} 7. c3 {[%clk 0:03:00]}  Bg7 {[%clk 0:02:58]} 8. Bc2 {[%clk 0:03:00]}  b5 {[%clk 0:02:35]} 9. d4 {[%clk 0:03:00]}  cxd4 {[%clk 0:02:36]} 10. cxd4 {[%clk 0:03:01]}  Bb7 {[%clk 0:02:37]} 11. Nbd2 {[%clk 0:03:01]}  O-O {[%clk 0:02:36]} 12. Nb3 {[%clk 0:03:02]}  a5 {[%clk 0:02:16]} 13. d5 {[%clk 0:03:02]}  a4 {[%clk 0:01:56]} 14. Nbd4 {[%clk 0:03:01]}  Qb6 {[%clk 0:01:57]} 15. h3 {[%clk 0:02:57]}  Nc5 {[%clk 0:01:52]} 16. Be3 {[%clk 0:02:44]}  Qa6 {[%clk 0:01:43]} 17. Nd2 {[%clk 0:02:37]}  Rac8 {[%clk 0:01:35]} 18. b4 {[%clk 0:02:34]}  axb3 {[%clk 0:00:48]} 19. axb3 {[%clk 0:02:33]}  Qb6 {[%clk 0:00:49]} 20. b4 {[%clk 0:02:34]}  Nfd7 {[%clk 0:00:45]} 21. bxc5 {[%clk 0:02:22]}  dxc5 {[%clk 0:00:46]} 22. N4f3 {[%clk 0:02:22]}  Bxa1 {[%clk 0:00:45]} 23. Qxa1 {[%clk 0:02:23]}  Qf6 {[%clk 0:00:37]} 24. e5 {[%clk 0:02:18]}  Qa6 {[%clk 0:00:31]} 25. Qxa6 {[%clk 0:02:05]}  Bxa6 {[%clk 0:00:32]} 26. Ra1 {[%clk 0:02:06]}  Bb7 {[%clk 0:00:27]} 27. Ra7 {[%clk 0:02:05]}  Rb8 {[%clk 0:00:28]} 28. e6 {[%clk 0:02:04]}  Nb6 {[%clk 0:00:23]} 29. Bf4 {[%clk 0:01:58]}  Nxd5 {[%clk 0:00:17]} 30. Bxb8 {[%clk 0:01:58]}  Rxb8 {[%clk 0:00:17]} 31. exf7+ {[%clk 0:01:59]}  Kxf7 {[%clk 0:00:18]} 32. Ne5+ {[%clk 0:01:59]}  Ke6 {[%clk 0:00:19]} 33. Nd3 {[%clk 0:01:59]}  Kd6 {[%clk 0:00:18]} 34. Ne4+ {[%clk 0:01:59]}  Kc6 {[%clk 0:00:19]} 35. Ndxc5 {[%clk 0:01:56]}  Bc8 {[%clk 0:00:16]} 36. Bb3 {[%clk 0:01:56]}  Bf5 {[%clk 0:00:15]} 37. Ra6+ {[%clk 0:01:51]}  Nb6 {[%clk 0:00:15]} 38. g4 {[%clk 0:01:50]}  Bc8 {[%clk 0:00:11]} 39. Ra7 {[%clk 0:01:49]}  Ra8 {[%clk 0:00:11]} 40. Rxe7 {[%clk 0:01:42]}  Ra1+ {[%clk 0:00:09]} 41. Kg2 {[%clk 0:01:42]}  Ra3 {[%clk 0:00:10]} 42. Rxh7 {[%clk 0:01:38]}  Na4 {[%clk 0:00:08]} 43. Bxa4 {[%clk 0:01:36]}  bxa4 {[%clk 0:00:09]} 44. Rh8 {[%clk 0:01:36]}  Kc7 {[%clk 0:00:06]} 45. Nf6 {[%clk 0:01:34]}  Ra2 {[%clk 0:00:02]} 46. Nd5+ {[%clk 0:01:34]}  Kd6 {[%clk 0:00:02]} 47. Nc3 {[%clk 0:01:29]} 1-0


[Site "https://www.chess.com"]